Cogmind - Beta 15 @@@ ROGUE MODE // 2025.06.07 @ 11:52:30 Player: CheifClapdad Result: Destroyed by P5-TFQ(R) with Subdweller Laser Performance ------------- Evolutions (0) 0 Regions Visited (3) 600 Robots Destroyed (21) 105 Value Destroyed (595) 595 Prototype IDs (0) 0 Alien Tech Used (0) 0 Bonus (37) 37 TOTAL SCORE: 1337 Bonus ------- Follower Combat Kills 60 Friendly Fire -23 Cogmind --------- Core Integrity 0/250 Matter 275/300 Energy 250/250 System Corruption 0% Temperature Cool (6) Movement Treading (240) Ox1 Location -10/Subcaves Parts ------- > --- POWER (1) -------- Ion Engine > --- PROPULSION (2) --- Light Treads > --- UTILITY (2) ------ Large Storage Unit > --- WEAPON (2) ------- Light Cannon Light Cannon > --- INVENTORY (15) --- Ion Engine Ion Engine Light Treads Light Treads Light Treads Wheel Wheel Large Storage Unit Large Matter Pod (150) Large Matter Pod (150) Scrap Shield Light Assault Rifle Scrap Shield Fragment (49) Scrap Shield Fragment (48) Peak State ------------ > --- POWER ------------ Ion Engine > --- PROPULSION ------- Light Treads Compact Wheel > --- UTILITY ---------- Small Storage Unit Improved Terrain Scanner > --- WEAPON ----------- Medium Laser Small Laser > --- INVENTORY -------- Ion Engine Light Treads Compact Wheel EM Pulse Gun [Rating: 9] Favorites ----------- Power Ion Engine Engine Ion Engine Propulsion Light Treads Treads Light Treads Wheel Compact Wheel Utility Weapon Shielding Device Improved Terrain Scanner Storage Large Storage Unit Protection Weapon Shielding Weapon Light Cannon Energy Gun Small Laser Energy Cannon Beam Cannon Ballistic Cannon Light Cannon Build | -11 -10 -10 -10 ------- Run | Yrd Mat Min Sub Slots Evolved . | . . . . Power . | . . . . Propulsion . | . . . . Utility . | . . . . Weapon . | . . . . Parts Attached 18 | 7 11 . . Power 4 | 1 3 . . Engine 4 | 1 3 . . Core . | . . . . Reactor . | . . . . Propulsion 5 | 2 3 . . Treads 3 | 1 2 . . Leg . | . . . . Wheel 2 | 1 1 . . Hover . | . . . . Flight . | . . . . Utility 4 | 2 2 . . Device 1 | 1 . . . Storage 2 | 1 1 . . Processor . | . . . . Hackware . | . . . . Protection 1 | . 1 . . Artifact . | . . . . Weapon 5 | 2 3 . . Energy Gun 2 | 2 . . . Energy Cannon 1 | . 1 . . Ballistic Gun . | . . . . Ballistic Cannon 2 | . 2 . . Launcher . | . . . . Special Weapon . | . . . . Impact Weapon . | . . . . Slashing Weapon . | . . . . Piercing Weapon . | . . . . Special Melee Weapon . | . . . . Unidentified Prototypes . | . . . . Parts Lost 5 | . 3 . 2 Power 1 | . 1 . . Propulsion 2 | . 1 . 1 Utility 2 | . 1 . 1 Weapon . | . . . . Highest Loss Streak 2 | . 2 . 1 To Critical Strikes 1 | . . . 1 Average Backups 9 | 2 6 10 12 Power 1 | . 1 2 2 Propulsion 3 | 1 2 3 5 Utility 2 | . 1 3 3 Weapon 1 | . 1 1 1 Tool/Special . | . . . . Unused Backups 13 | 1 . . 12 Power . | . . . . Propulsion 6 | 1 . . 5 Utility 4 | . . . 4 Weapon 3 | . . . 3 Tool/Special . | . . . . Average Slot Usage (%) 98 | . 97 100 97 Engine 14 | . 14 14 14 Treads 24 | . 18 28 28 Wheel 3 | . 9 . . Device 1 | . 2 . . Storage 14 | . 14 14 14 Protection 11 | . 9 14 11 Energy Gun 7 | . 16 . . Ballistic Cannon 20 | . 10 28 28 Peak Build Rating 9 | 9 9 8 8 Average Rating 7 | 5 7 7 7 On Entrance 6 | . 9 7 8 Naked Turns . | . . . . Heaviest Build 32 | 14 32 32 32 Greatest Support 40 | 20 40 40 40 Greatest Overweight (x) 1 | 1 . . . Average Overweight (x) . | . . . . Largest Inventory Capacity 15 | 8 15 15 15 Average Capacity 12 | 7 8 15 15 Most Carried 15 | 5 9 12 15 Average Carried 9 | 2 6 10 14 Final Capacity 15 | 8 15 15 15 Final Carried 15 | 4 9 12 15 Class Distribution -------------------- 100% | Mutant Dominant Class ---------------- Mutant | -10/Materials Mutant | -10/Mines Mutant | -10/Subcaves Resources | -11 -10 -10 -10 ----------- Run | Yrd Mat Min Sub Matter Collected 1020 | 231 443 149 197 Remotely . | . . . . Salvage Created 672 | 10 398 119 145 Parts 34 | 3 15 10 6 Haulers Intercepted 1 | . 1 . . Recyclers Shooed 1 | . 1 . . Parts Field Recycled . | . . . . Retrieved Matter . | . . . . Parts Self-Destructed 10 | . . . 10 Prevented . | . . . . Kills | -11 -10 -10 -10 ------- Run | Yrd Mat Min Sub Combat Hostiles Destroyed 18 | . 9 5 4 Guns 8 | . 8 . . Cannons 10 | . 1 5 4 Classes Destroyed 6 | 1 3 . 2 Tunneler 2 | 1 . 1 . Hauler 1 | . 1 . . Swarmer 4 | . 2 2 . Grunt 10 | . 7 3 . Artisan 1 | . . . 1 Subdweller 4 | . . . 4 Best Kill Streak 4 | 1 2 4 2 Combat Bots Only 3 | . 2 3 2 Max Kills in Single Turn 2 | 1 1 2 1 Gunslinging . | . . . . Exploded . | . . . . Melee . | . . . . Uniques/NPCs Destroyed . | . . . . Combat | -11 -10 -10 -10 -------- Run | Yrd Mat Min Sub Hostile Shots Fired 111 | . 59 25 27 Missed 33 | . 17 10 6 Hits 78 | . 42 15 21 Projectile 78 | . 42 15 21 Critical Strikes 3 | . . . 3 Damage Taken 1080 | . 466 153 461 Core 253 | . 101 25 127 Absorbed by Shields . | . . . . Redirected to Shielding 53 | . 9 16 28 Core Remaining (%) 100 | 100 . . . Volleys Fired 90 | 1 50 14 25 Largest 2 | 2 2 2 2 Hottest 100 | 90 100 60 60 Shots Fired 179 | 2 99 28 50 Gun 82 | 2 80 . . Cannon 97 | . 19 28 50 Launcher . | . . . . Special . | . . . . Kinetic 90 | . 12 28 50 Thermal 89 | 2 87 . . Explosive . | . . . . Electromagnetic . | . . . . Robot Hit Streak 11 | 1 9 6 11 Robot Miss Streak 4 | . 4 3 2 Penetration Max . | . . . . Secondary Targets 3 | . 3 . . Max Gunslinging Chain 1 | . 1 . . Shots Hit Robots 109 | 1 59 17 32 Core Hits 34 | 1 19 7 7 Critical Kills . | . . . . Critical Parts Destroyed . | . . . . Critical Strikes 8 | . 7 . 1 Burn 7 | . 7 . . Blast 1 | . . . 1 Melee Attacks . | . . . . Impact . | . . . . Slashing . | . . . . Piercing . | . . . . Sneak Attacks . | . . . . Combat Hostiles . | . . . . Follow-up Attacks . | . . . . Damage Inflicted 1574 | 17 769 310 478 Guns 561 | 12 549 . . Cannons 1006 | . 220 308 478 Explosions . | . . . . Melee . | . . . . Ramming 7 | 5 . 2 . Kinetic 899 | . 113 308 478 Thermal 668 | 12 656 . . Explosive . | . . . . Electromagnetic . | . . . . Impact . | . . . . Slashing . | . . . . Piercing . | . . . . Highest Corruption . | . . . . Average Corruption . | . . . . Corruption Purged . | . . . . Corruption Blocked . | . . . . Overload Shots . | . . . . Overflow Damage . | . . . . Projectiles . | . . . . Explosions . | . . . . Melee . | . . . . Knockbacks 7 | . 1 4 2 Impact . | . . . . Kinetic 7 | . 1 4 2 Secondary . | . . . . Self-Inflicted Damage . | . . . . Shots . | . . . . Rammed 2 | 1 . 1 . Targets Rammed 2 | 1 . 1 . Kicked . | . . . . Crushed . | . . . . Highest Temperature 418 | 30 418 51 . Average Temperature 119 | 17 132 28 . Received Heat Transfer 411 | . 231 63 117 Effects 2 | . 2 . . Shutdowns 1 | . 1 . . Energy Bleed 1 | . 1 . . Siege Activations . | . . . . Martial Activations . | . . . . Shielding Activations . | . . . . Robots Disrupted . | . . . . Combat Hostiles . | . . . . Robots Corrupted . | . . . . Combat Hostiles . | . . . . Parts Fried . | . . . . Impact Corruptions . | . . . . Robots Melted . | . . . . Combat Hostiles . | . . . . Parts Melted 2 | . 2 . . Heat Transferred 2191 | 37 2154 . . Parts Sabotaged . | . . . . Parts Stolen . | . . . . Parts Stripped . | . . . . Power Chain Reactions . | . . . . Alert | -11 -10 -10 -10 ------- Run | Yrd Mat Min Sub Maximum Alert Level . | . . . . Low Security (%) 100 | 100 100 100 . Level 1 . | . . . . Level 2 . | . . . . Level 3 . | . . . . Level 4 . | . . . . Level 5 . | . . . . High Security . | . . . . Max Security . | . . . . Peak Influence 91 | 5 80 91 . Initial . | . . . . Average 14 | . 12 19 . Influence Increases 352 | 5 232 115 . Destroy 0b10 Robot/C 280 | . 180 100 . Destroy 0b10 Robot/NC 15 | 5 5 5 . Destroy Leader 52 | . 42 10 . Successful Hack 5 | . 5 . . Influence Decreases 352 | 5 232 88 27 Entered New Map 15 | . . . 15 Time Decay 307 | 5 202 88 12 Lost Part 30 | . 30 . . Squads Dispatched 1 | . 1 . . Investigation . | . . . . Extermination . | . . . . Reinforcement 1 | . 1 . . Assault . | . . . . Garrison . | . . . . Intercept . | . . . . Searches Triggered . | . . . . Construction Impeded . | . . . . Haulers Reinforced . | . . . . Active Scanning Responses . | . . . . Cargo Convoy Interrupts . | . . . . Stealth | -11 -10 -10 -10 --------- Run | Yrd Mat Min Sub Distress Signals 1 | . 1 . . Communications Jammed . | . . . . Distress Signals . | . . . . Times Spotted 37 | . 23 6 8 Peak Tracking Total 5 | . 5 4 2 Tactical Retreats . | . . . . Traps | -11 -10 -10 -10 ------- Run | Yrd Mat Min Sub Traps Triggered . | . . . . Indirectly . | . . . . Trap Hack Attempts . | . . . . Triggered . | . . . . Disarmed . | . . . . Reprogrammed . | . . . . Reused . | . . . . Traps Extracted . | . . . . Installed . | . . . . Triggered . | . . . . Machines | -11 -10 -10 -10 ---------- Run | Yrd Mat Min Sub Machines Disabled . | . . . . Max in Single Turn . | . . . . Machines Repaired . | . . . . Machines Dismantled . | . . . . Machines Sabotaged . | . . . . Overloaded Fab Kills . | . . . . Hacking | -11 -10 -10 -10 --------- Run | Yrd Mat Min Sub Machines Accessed 2 | . 1 . 1 Terminals 1 | . 1 . . Fabricators . | . . . . Repair Stations . | . . . . Recycling Units . | . . . . Scanalyzers . | . . . . Garrison Access . | . . . . Total Hacks 6 | . 2 . 4 Successful 6 | . 2 . 4 Failed . | . . . . Catastrophic . | . . . . Database Lockouts . | . . . . Manual 1 | . 1 . . Terminals 2 | . 2 . . Fabricators . | . . . . Repair Stations . | . . . . Recycling Units . | . . . . Scanalyzers . | . . . . Garrison Access . | . . . . Terminal Hacks 5 | . 1 . 4 Record 4 | . . . 4 Zone Layout 1 | . 1 . . Fabricator Hacks . | . . . . Repair Station Hacks . | . . . . Recycling Unit Hacks . | . . . . Scanalyzer . | . . . . Garrison Access Hacks . | . . . . Unauthorized Hacks 1 | . 1 . . Terminals 1 | . 1 . . Botnet 1 | . 1 . . Fabricators . | . . . . Repair Stations . | . . . . Recycling Units . | . . . . Scanalyzers . | . . . . Garrison Access . | . . . . Data Cores Recovered . | . . . . Used . | . . . . Hacking Detections . | . . . . Full Trace Events . | . . . . Feedback Events . | . . . . Feedback Blocked . | . . . . Robot Schematics Acquired . | . . . . Robots Built . | . . . . Authchips . | . . . . Time . | . . . . Total Robot Build Rating . | . . . . Part Schematics Acquired . | . . . . Parts Built . | . . . . Authchips . | . . . . Time . | . . . . Total Part Build Rating . | . . . . Parts Repaired . | . . . . Time . | . . . . Parts Recycled . | . . . . Recycled Matter . | . . . . Retrieved Matter . | . . . . Retrieved Components . | . . . . Parts Scanalyzed . | . . . . Part Schematics Acquired . | . . . . Parts Damaged . | . . . . Bothacking | -11 -10 -10 -10 ------------ Run | Yrd Mat Min Sub Used RIF Installer . | . . . . Robots Hacked . | . . . . Non-combat . | . . . . Combat . | . . . . Robot Hacks Applied . | . . . . Relay Couplers Released . | . . . . Fabnet Peak Effective % . | . . . . Robots Rewired . | . . . . Allies Hacked . | . . . . Hacks Repelled . | . . . . Allies | -11 -10 -10 -10 -------- Run | Yrd Mat Min Sub Total Allies 1 | . . 1 . Largest Group 1 | . . 1 1 Highest-Rated Group 31 | . . 31 31 Highest-Rated Ally 31 | . . 31 31 Total Orders . | . . . . Ally Attacks 12 | . . . 12 Total Damage 213 | . . . 213 Kills 2 | . . . 2 Allies Corrupted . | . . . . Allies Melted . | . . . . Intel | -11 -10 -10 -10 ------- Run | Yrd Mat Min Sub Active Infowar (turns) 206 | 8 198 . . Terrain 206 | 8 198 . . Robot Analysis Total . | . . . . Derelict Logs Recovered . | . . . . Drone Launches . | . . . . Drone Recoveries . | . . . . Exploration | -11 -10 -10 -10 ------------- Run | Yrd Mat Min Sub Turns Passed 2858 | 102 1172 634 950 Spaces Moved 1692 | 60 763 326 543 Core 8 | 8 . . . Treads 1291 | 43 379 326 543 Legs . | . . . . Wheels 393 | 9 384 . . Hover . | . . . . Flight . | . . . . Fastest Speed 50 | 50 100 160 160 Average Speed 145 | 137 129 160 160 Slowest Speed 160 | 160 160 160 160 Overloaded Moves . | . . . . Propulsion Burnouts . | . . . . Robots Hopped . | . . . . Potential Cave-ins . | . . . . Cave-ins Triggered . | . . . . Exploration Rate (%) 43 | 4 75 61 33 Regions Visited 3 Branch Regions 2 Pre-discovered Areas . | . . . . Known Exits Taken . | . . . . Unknown Exits Taken 3 | 1 1 1 . Scrap Searched 3 | . . 1 2 Spaces Dug . | . . . . Terrain Destroyed . | . . . . Melee . | . . . . Projectile . | . . . . AOE . | . . . . Terrain Rammed . | . . . . Walls Destroyed . | . . . . Machines Disabled . | . . . . Actions | -11 -10 -10 -10 --------- Run | Yrd Mat Min Sub Total 1908 | 74 847 410 577 Wait 78 | . 10 67 1 Move 1690 | 60 762 325 543 Hop . | . . . . Pick Up 20 | 5 7 3 5 Fast Attach 11 | 7 4 . . Attach 2 | . 2 . . Detach . | . . . . Swap 5 | . 5 . . Drop 11 | 1 7 . 3 Fire 90 | 1 50 14 25 Melee . | . . . . Ram . | . . . . Kick . | . . . . Crush 1 | . . 1 . Escape Stasis . | . . . . Rewire . | . . . . Trap . | . . . . Miscellaneous . | . . . . Route ------- -11/Scrapyard -10/Materials (discovered 2 exits: [*Mat] / [*Min]) -10/Mines (discovered 2 exits: [*Mat] / *Sub) -10/Subcaves (discovered 1 exit: Rec) History --------- Turn | Location | Event 4 | -11/Scrapyard | Discovered new exit (range 16) 103 | -11/Scrapyard | Entered Materials 346 | -10/Materials | Build established: Mutant 356 | -10/Materials | Discovered new exit (range 11) 545 | -10/Materials | Discovered new exit (range 12) 1275 | -10/Materials | Entered Mines 1339 | -10/Mines | Discovered new exit (range 9) 1692 | -10/Mines | Core integrity fell below 50% 1755 | -10/Mines | Escorted by a lone wolf Derelict 1822 | -10/Mines | Discovered new exit (range 6) 1909 | -10/Mines | Entered Subcaves 1909 | -10/Subcaves | Accompanied by 1 ally 1911 | -10/Subcaves | Shifting Twisted Machinery released Battle Cannon 2081 | -10/Subcaves | Ambushed by Subdwellers from Twisted Machinery 2239 | -10/Subcaves | Core integrity fell below 20% 2384 | -10/Subcaves | Visited Clippyterm 2389 | -10/Subcaves | Identified exit to Recycling 2389 | -10/Subcaves | Learned Research machine intel 2738 | -10/Subcaves | Shifting Twisted Machinery released Riot Gun 2822 | -10/Subcaves | Shifting Twisted Machinery released Sub. Machine Gun 2848 | -10/Subcaves | Ambushed by angry Subdweller bent on revenge 2859 | -10/Subcaves | Destroyed by P5-TFQ(R) with Subdweller Laser Last Messages --------------- 02693_ 83-JGF(R) knocked back. 02696_ Weapon Shielding destroyed. 02696_ 83-JGF(R) destroyed. 02699_ ZV-1I2(R) knocked back. 02705_ ZV-1I2(R) destroyed. 02708_ Acquired 51 matter. 02713_ Acquired 8 matter. Riot Gun falls loose from the Twisted Machinery. 02763_ DZ-NZI(u) tweaks Twisted Machinery. Sub. Machine Gun falls loose from the Twisted Machinery. 02841_ DZ-NZI(u) cries out in pain. 02841_ DZ-NZI(u) destroyed. 02844_ Acquired 16 matter. 02848_ P5-TFQ(R) angrily emerges from the Twisted Machinery. 02848_ P5-TFQ(R): "SUBHATE!" 02850_ Acquired 2 matter. 02851_ Critical hit (Destroy). 02851_ Lgt. Treads destroyed. Map ----- +----------------------------------------------------+ | ?????????????????????????????????????????????????? | | ?????????????????????????????????????????????????? | | ?????????????????????????????????????????????????? | | ?????????????????????????????????????????????????? | | ?????????????????????????????????????????????????? | | ?????????????????????????????????????????????????? | | ?????????????????????????????????????????????????? | | ?????????????????????????????????????????????????? | | ?????????????????????????????????????????????????? | | ??????????????????????????????????###????????????? | | ????????????????????????????????### ##?####??????? | | ???????????????????????????????## ### #??????? | | ???????????????????????????????# #??????? | | ???????????????????????????????# ##??????? | | ???????????????????????????????## #####???????? | | ????????????????????????????????# ######????????? | | ????????????????????????????????# # ##???????? | | ???????????????????????????????## ##??????? | | ???????????????????????????????# ##?????? | | ?????????????????????????####### #?????? | | ????????????????????????##" ## ## &####??? | | ???????????????????????##[""" # ## # ####%%=%#?? | | ???????????????????????#"| ""# #####??##%!##?# | | ??????????????????????##"%= "" #???????#= =## | | ??????????????????????#"" # ["##?????###% | | ??????????????????????#""@## # #??????# | | ??????????????????????##"R## #?????# # ### | | ??????????????????????# "" # ####?????# ###?? | | ??????????????????????##"" ### #????????# ##???? | | ???????????????????????#####?###????????## #???? | | ?????????>????????????????????????????### #???? | | ??????????????????????????????????????# ##???? | | ??????????????????????????????????????# #????? | | ??????????????????????????????????????# # #???? | | ?????????????????????????????????????# # ####???? | | ?????###????????????????????????????# #### #?????? | | ????## #########????????????????????## ?## #?????? | | ????# ##????????????????????# ## ##?????? | | ??### ##### #??????????????????#### # #?????? | | ?## ##???## ##????????????????## ## ####?????? | | ?# #?????# #???????????????## # ##????????? | | ?#### #????## ###???????????##### ## ##?????????? | | ????## ##???# #?????????????#%=#%##%##??????????? | | ?????# #### ##?????????????## ## ##???????????? | | ?????## #??????????????##" ##????????????? | | ??????# ######?????????##?### #####?????????????? | | ??????## #????????????##[#?# ##?????????????????? | | ??????# #??####??????#%#### ##??????????????????? | | ??????## #### ##????##]## ##???????????????????? | | ???????# ## ###### # ##????????????????????? | +----------------------------------------------------+ Best States ------------- Heat Dissipation 25 Energy Generation 10 Energy Capacity 250 Matter Stores 300 Matter Capacity 300 Sight Range 16 Terrain Scan Range 16 Terrain Scan Density 10 Weapon Shielding 33 Evasion (%) 40 Recoil Reduction 2 Item Schematics ----------------- None Robot Schematics ------------------ None Fabricated ------------ Nothing Repaired ---------- Nothing Alien Tech Used ----------------- None Achievements -------------- None Challenges ------------ None Game ------ Seed DecoderFocalShield Manual? 0 Play Time 00:15:35 Cumulative 61.8 hours Start 2025.06.07 @ 11:20:41 End 2025.06.07 @ 11:52:30 Sessions 1 Manual Loads 0 Difficulty Rogue Special Mode None Game No. 79 Rogue 79 Adventurer 0 Explorer 0 Win Type - Total 1 Types 1/0/0/0/0/0/0/0/0/0 Lore% 29 Gallery% 41 Achievement% 37 Wizard Run 0 Options --------- Layout 1 ASCII 0 Keyboard 0 Movement Arrows Keybinds 0 Fullscreen 1 Font 24/Smallcaps Map View 50x35 Zoom Use 0% Tactical HUD 1 Map Filters NONE Filters NONE Steam X RUN: c5d1c316-8dd8-497e-adaa-b0f857ce3591